[Event "*** Titled Tuesday 3|2 Blitz (Late)"]
[Site "Chess.com"]
[Date "2016.11.01"]
[Round "4"]
[White "RobertoJBM"]
[Black "Rozum_Ivan"]
[Result "0-1"]
[WhiteElo "2534"]
[BlackElo "2599"]
[TimeControl "180+2"]
[EndTime "17:53:44 PDT"]
[Termination "Rozum_Ivan won by resignation"]

1. d4 {[%clk 0:03:02]} 1... Nf6 {[%clk 0:02:57.3]} 2. Nc3 {[%clk 0:03:02.4]}
2... d5 {[%clk 0:02:57.7]} 3. Bg5 {[%clk 0:03:03.4]} 3... c6 {[%clk 0:02:58.4]}
4. Qd2 {[%clk 0:03:04.4]} 4... h6 {[%clk 0:02:59]} 5. Bh4 {[%clk 0:03:05.1]}
5... g6 {[%clk 0:02:58.6]} 6. f3 {[%clk 0:03:04.8]} 6... Bg7 {[%clk 0:02:58.4]}
7. e4 {[%clk 0:03:04.7]} 7... dxe4 {[%clk 0:02:55.4]} 8. fxe4 {[%clk 0:03:06.6]}
8... g5 {[%clk 0:02:56.6]} 9. Bg3 {[%clk 0:03:06.7]} 9... Nh5 {[%clk 0:02:57]}
10. Bf2 {[%clk 0:03:07.8]} 10... Nf4 {[%clk 0:02:56.2]} 11. O-O-O {[%clk
0:03:07.5]} 11... Bg4 {[%clk 0:02:56.6]} 12. Re1 {[%clk 0:03:03]} 12... Nd7
{[%clk 0:02:56.2]} 13. g3 {[%clk 0:03:01.2]} 13... Ne6 {[%clk 0:02:53.8]} 14.
Be2 {[%clk 0:02:55.8]} 14... Bxe2 {[%clk 0:02:52.5]} 15. Ngxe2 {[%clk
0:02:57.7]} 15... Qa5 {[%clk 0:02:53]} 16. Kb1 {[%clk 0:02:58.3]} 16... O-O-O
{[%clk 0:02:51.1]} 17. Qe3 {[%clk 0:02:44.3]} 17... Nb6 {[%clk 0:02:51]} 18. Rd1
{[%clk 0:02:39.6]} 18... Nc4 {[%clk 0:02:48.9]} 19. Qc1 {[%clk 0:02:40.6]} 19...
Qb4 {[%clk 0:02:47.4]} 20. Rd3 {[%clk 0:02:30]} 20... Nxd4 {[%clk 0:02:35.6]}
21. Nxd4 {[%clk 0:02:25.7]} 21... Bxd4 {[%clk 0:02:36.4]} 22. Bxd4 {[%clk
0:02:26.4]} 22... Rxd4 {[%clk 0:02:37.2]} 23. Rxd4 {[%clk 0:02:27.6]} 23... Na3+
{[%clk 0:02:38.3]} 24. Ka1 {[%clk 0:02:27]} 24... Qxd4 {[%clk 0:02:39.5]} 25.
Rd1 {[%clk 0:02:26.7]} 25... Qe5 {[%clk 0:02:28.1]} 26. Qd2 {[%clk 0:02:19.2]}
26... Nc4 {[%clk 0:02:26.7]} 27. Qd3 {[%clk 0:02:16.8]} 27... Nb6 {[%clk
0:02:19]} 28. Kb1 {[%clk 0:02:05.5]} 28... h5 {[%clk 0:02:19.7]} 29. Qf3 {[%clk
0:02:05.5]} 29... f6 {[%clk 0:02:19.6]} 30. Qf5+ {[%clk 0:01:56.1]} 30... Qxf5
{[%clk 0:02:20.1]} 31. exf5 {[%clk 0:01:58]} 31... Rd8 {[%clk 0:02:20.6]} 32.
Re1 {[%clk 0:01:58.9]} 32... Rd7 {[%clk 0:02:17.3]} 33. b3 {[%clk 0:01:57.9]}
33... Nd5 {[%clk 0:02:14.1]} 34. Ne4 {[%clk 0:01:52.5]} 34... b6 {[%clk
0:02:15.3]} 35. Kb2 {[%clk 0:01:51.1]} 35... Kd8 {[%clk 0:02:16]} 36. a3 {[%clk
0:01:51.2]} 36... Nc7 {[%clk 0:02:08.4]} 37. Re2 {[%clk 0:01:49]} 37... Ne8
{[%clk 0:02:09]} 38. Rf2 {[%clk 0:01:26]} 38... Nd6 {[%clk 0:02:03.5]} 39. Nd2
{[%clk 0:01:26.9]} 39... Ke8 {[%clk 0:02:00.3]} 40. a4 {[%clk 0:01:26.2]} 40...
Kf7 {[%clk 0:02:00.6]} 41. Kc3 {[%clk 0:01:24.8]} 41... Ne8 {[%clk 0:01:58.1]}
42. Ne4 {[%clk 0:01:18.5]} 42... Rd5 {[%clk 0:01:57.3]} 43. h3 {[%clk
0:01:17.1]} 43... Re5 {[%clk 0:01:55.8]} 44. Kd4 {[%clk 0:01:15.7]} 44... Rd5+
{[%clk 0:01:54.6]} 45. Ke3 {[%clk 0:01:16.2]} 45... Nd6 {[%clk 0:01:45]} 46.
Nxd6+ {[%clk 0:01:16.9]} 46... Rxd6 {[%clk 0:01:30]} 47. g4 {[%clk 0:01:08.5]}
47... h4 {[%clk 0:01:29.3]} 48. Ke4 {[%clk 0:01:04.8]} 48... Rd5 {[%clk
0:01:26.8]} 49. Rf3 {[%clk 0:01:04.6]} 49... Ke8 {[%clk 0:01:25.8]} 50. c4
{[%clk 0:01:04.5]} 50... Re5+ {[%clk 0:01:25.1]} 51. Kd4 {[%clk 0:01:03]} 51...
Kd7 {[%clk 0:01:25.7]} 52. b4 {[%clk 0:01:00.9]} 52... c5+ {[%clk 0:01:25.2]}
53. bxc5 {[%clk 0:01:01]} 53... Rxc5 {[%clk 0:01:27.1]} 54. Kc3 {[%clk
0:00:57.2]} 54... Re5 {[%clk 0:01:23.2]} 55. Rd3+ {[%clk 0:00:56.3]} 55... Kc7
{[%clk 0:01:24.4]} 56. Kb4 {[%clk 0:00:57.1]} 56... Re1 {[%clk 0:01:23.5]} 57.
Kc3 {[%clk 0:00:46.4]} 57... Rg1 {[%clk 0:01:24.3]} 58. Kd4 {[%clk 0:00:32.8]}
58... Rg3 {[%clk 0:01:25]} 59. Rd2 {[%clk 0:00:19]} 59... Rxh3 {[%clk
0:01:25.4]} 60. Re2 {[%clk 0:00:20.9]} 60... Kd7 {[%clk 0:01:25.8]} 61. c5
{[%clk 0:00:21.8]} 61... Ra3 {[%clk 0:01:24]} 62. cxb6 {[%clk 0:00:21.4]} 62...
Rxa4+ {[%clk 0:01:23.3]} 63. Kc5 {[%clk 0:00:22.3]} 63... axb6+ {[%clk
0:01:24.4]} 64. Kb5 {[%clk 0:00:22.7]} 64... Rxg4 {[%clk 0:01:25.3]} 65. Rd2+
{[%clk 0:00:23.9]} 65... Ke8 {[%clk 0:01:26.6]} 66. Kxb6 {[%clk 0:00:24.4]}
66... Rf4 {[%clk 0:01:28.1]} 0-1

[Event "*** Titled Tuesday 3|2 Blitz (Late)"]
[Site "Chess.com"]
[Date "2016.11.01"]
[Round "4"]
[White "GM_Barcenilla"]
[Black "nihalsarin"]
[Result "1-0"]
[WhiteElo "2692"]
[BlackElo "2499"]
[TimeControl "180+2"]
[EndTime "17:53:46 PDT"]
[Termination "GM_Barcenilla won by resignation"]

1. c4 {[%clk 0:03:01.9]} 1... Nf6 {[%clk 0:02:54.9]} 2. g3 {[%clk 0:03:02.9]}
2... e5 {[%clk 0:02:53.8]} 3. Bg2 {[%clk 0:03:03]} 3... d5 {[%clk 0:02:53.1]} 4.
cxd5 {[%clk 0:03:03.9]} 4... Nxd5 {[%clk 0:02:54.4]} 5. Nc3 {[%clk 0:03:04.5]}
5... Nb6 {[%clk 0:02:54.8]} 6. Nf3 {[%clk 0:03:05.3]} 6... Nc6 {[%clk
0:02:55.6]} 7. O-O {[%clk 0:03:05.5]} 7... Be7 {[%clk 0:02:56.2]} 8. d3 {[%clk
0:03:04.6]} 8... O-O {[%clk 0:02:56.9]} 9. Be3 {[%clk 0:03:01.9]} 9... Re8
{[%clk 0:02:57.5]} 10. Rc1 {[%clk 0:03:01.8]} 10... Bf8 {[%clk 0:02:56.7]} 11.
a3 {[%clk 0:02:59.4]} 11... Nd4 {[%clk 0:02:28.3]} 12. Ne4 {[%clk 0:02:59.7]}
12... Be6 {[%clk 0:02:19.9]} 13. Nc5 {[%clk 0:02:49.6]} 13... Bd5 {[%clk
0:02:10.6]} 14. Bxd4 {[%clk 0:02:34.2]} 14... exd4 {[%clk 0:02:10]} 15. Re1
{[%clk 0:02:35.1]} 15... a5 {[%clk 0:01:51.8]} 16. Nb3 {[%clk 0:02:30.3]} 16...
g5 {[%clk 0:01:52.3]} 17. Bh3 {[%clk 0:02:15.5]} 17... Bxf3 {[%clk 0:01:21.2]}
18. exf3 {[%clk 0:02:16.2]} 18... Rxe1+ {[%clk 0:01:15.5]} 19. Qxe1 {[%clk
0:02:18.1]} 19... Qd5 {[%clk 0:01:16.4]} 20. Nd2 {[%clk 0:02:16.6]} 20... c6
{[%clk 0:01:14.1]} 21. Qe4 {[%clk 0:02:12.3]} 21... Qxe4 {[%clk 0:01:07.4]} 22.
fxe4 {[%clk 0:02:14.2]} 22... Na4 {[%clk 0:01:04.9]} 23. Rc2 {[%clk 0:02:15.5]}
23... Nc5 {[%clk 0:01:04.3]} 24. Bf1 {[%clk 0:02:12.6]} 24... a4 {[%clk
0:01:00]} 25. Nf3 {[%clk 0:02:09.7]} 25... Ne6 {[%clk 0:00:59.2]} 26. Bh3 {[%clk
0:02:10.1]} 26... Nc5 {[%clk 0:00:53.2]} 27. Bf1 {[%clk 0:01:57.8]} 27... Ne6
{[%clk 0:00:53.9]} 28. Rc4 {[%clk 0:01:35.5]} 28... c5 {[%clk 0:00:43.3]} 29.
Bh3 {[%clk 0:01:33.6]} 29... b5 {[%clk 0:00:44]} 30. Rc1 {[%clk 0:01:24.6]}
30... h6 {[%clk 0:00:36.7]} 31. Kf1 {[%clk 0:01:22.1]} 31... Bd6 {[%clk
0:00:36.2]} 32. Ke2 {[%clk 0:01:15.1]} 32... Kf8 {[%clk 0:00:35.7]} 33. e5
{[%clk 0:01:08.4]} 33... Be7 {[%clk 0:00:35.5]} 34. Nd2 {[%clk 0:01:09.3]} 34...
Rc8 {[%clk 0:00:28.4]} 35. Bg2 {[%clk 0:00:54.1]} 35... f6 {[%clk 0:00:20.2]}
36. exf6 {[%clk 0:00:49.2]} 36... Bxf6 {[%clk 0:00:20.7]} 37. Bd5 {[%clk
0:00:50.4]} 37... Ke7 {[%clk 0:00:12.6]} 38. Ne4 {[%clk 0:00:48.9]} 38... Be5
{[%clk 0:00:12.1]} 39. Bxe6 {[%clk 0:00:45.6]} 39... Kxe6 {[%clk 0:00:13.5]} 40.
Rxc5 {[%clk 0:00:46.7]} 40... Rxc5 {[%clk 0:00:14.8]} 41. Nxc5+ {[%clk
0:00:48.6]} 41... Kd5 {[%clk 0:00:16.7]} 42. Ne4 {[%clk 0:00:44.9]} 42... Bg7
{[%clk 0:00:17.6]} 43. Kf3 {[%clk 0:00:41.3]} 43... Ke6 {[%clk 0:00:18.4]} 44.
Kg4 {[%clk 0:00:42.2]} 44... Bf8 {[%clk 0:00:18.9]} 45. Kh5 {[%clk 0:00:41.2]}
45... Kf7 {[%clk 0:00:19.9]} 46. h4 {[%clk 0:00:40.1]} 46... gxh4 {[%clk
0:00:20.8]} 47. Kxh4 {[%clk 0:00:42]} 47... b4 {[%clk 0:00:21.5]} 48. axb4
{[%clk 0:00:43.2]} 48... Bxb4 {[%clk 0:00:22.6]} 49. Kh5 {[%clk 0:00:34]} 49...
Ke6 {[%clk 0:00:13.2]} 50. Kxh6 {[%clk 0:00:32.7]} 50... Kd5 {[%clk 0:00:13.3]}
51. g4 {[%clk 0:00:31.2]} 51... Kc6 {[%clk 0:00:10.7]} 52. g5 {[%clk 0:00:31.9]}
52... Bc3 {[%clk 0:00:12.4]} 53. g6 {[%clk 0:00:29.4]} 53... Bxb2 {[%clk
0:00:13.6]} 54. g7 {[%clk 0:00:30.9]} 54... a3 {[%clk 0:00:15.1]} 55. g8=Q
{[%clk 0:00:32.3]} 1-0

[Event "*** Titled Tuesday 3|2 Blitz (Late)"]
[Site "Chess.com"]
[Date "2016.11.01"]
[Round "4"]
[White "keisyzrk"]
[Black "Abrito99"]
[Result "1-0"]
[WhiteElo "2231"]
[BlackElo "2357"]
[TimeControl "180+2"]
[EndTime "17:53:49 PDT"]
[Termination "keisyzrk won by resignation"]

1. e4 {[%clk 0:03:02]} 1... e6 {[%clk 0:03:00.2]} 2. d3 {[%clk 0:03:02.5]} 2...
d5 {[%clk 0:03:01.7]} 3. Nd2 {[%clk 0:03:02.9]} 3... Nf6 {[%clk 0:02:58.4]} 4.
Ngf3 {[%clk 0:03:03.7]} 4... Nc6 {[%clk 0:02:58.1]} 5. g3 {[%clk 0:03:04.5]}
5... e5 {[%clk 0:02:58.8]} 6. Bg2 {[%clk 0:03:04]} 6... Bc5 {[%clk 0:02:58.1]}
7. O-O {[%clk 0:03:03.6]} 7... O-O {[%clk 0:02:58.6]} 8. exd5 {[%clk 0:02:50.2]}
8... Nxd5 {[%clk 0:02:56.9]} 9. Nc4 {[%clk 0:02:50.3]} 9... f6 {[%clk
0:02:53.5]} 10. c3 {[%clk 0:02:21.9]} 10... Be6 {[%clk 0:02:52.7]} 11. Ne3
{[%clk 0:02:11]} 11... a5 {[%clk 0:02:05.6]} 12. Nxd5 {[%clk 0:01:49.2]} 12...
Bxd5 {[%clk 0:02:04.4]} 13. Be3 {[%clk 0:01:49.8]} 13... Be7 {[%clk 0:01:29.2]}
14. d4 {[%clk 0:01:48.7]} 14... exd4 {[%clk 0:01:20.2]} 15. Nxd4 {[%clk
0:01:46.1]} 15... Bxg2 {[%clk 0:01:19.1]} 16. Kxg2 {[%clk 0:01:48]} 16... Qd5+
{[%clk 0:01:20]} 17. Qf3 {[%clk 0:01:47.2]} 17... Qxf3+ {[%clk 0:01:20.3]} 18.
Kxf3 {[%clk 0:01:49.1]} 18... Ne5+ {[%clk 0:01:20.6]} 19. Kg2 {[%clk 0:01:48.9]}
19... Kf7 {[%clk 0:01:18.5]} 20. Bf4 {[%clk 0:01:47]} 20... c6 {[%clk
0:00:26.4]} 21. Bxe5 {[%clk 0:01:37.8]} 21... fxe5 {[%clk 0:00:28.3]} 22. Nf3
{[%clk 0:01:39.1]} 22... Bf6 {[%clk 0:00:27.8]} 23. Nd2 {[%clk 0:01:39.5]} 23...
Rad8 {[%clk 0:00:27.4]} 24. Ne4 {[%clk 0:01:37.2]} 24... Rd5 {[%clk 0:00:27.6]}
25. f4 {[%clk 0:01:29.1]} 25... exf4 {[%clk 0:00:27.6]} 26. Rxf4 {[%clk
0:01:29.1]} 26... Kg6 {[%clk 0:00:23.8]} 27. Raf1 {[%clk 0:01:28.7]} 27... Re5
{[%clk 0:00:21.2]} 28. h4 {[%clk 0:01:23.9]} 28... h5 {[%clk 0:00:21.3]} 29. Kh3
{[%clk 0:01:12.3]} 29... Rb5 {[%clk 0:00:17.5]} 30. b3 {[%clk 0:01:05.8]} 30...
Re5 {[%clk 0:00:18.7]} 31. c4 {[%clk 0:01:03.9]} 31... a4 {[%clk 0:00:17.1]} 32.
bxa4 {[%clk 0:01:02.7]} 32... Ra5 {[%clk 0:00:17.8]} 33. R1f2 {[%clk 0:00:54.1]}
33... Rxa4 {[%clk 0:00:16.9]} 34. Nc5 {[%clk 0:00:55.3]} 34... Ra7 {[%clk
0:00:17]} 35. Nd7 {[%clk 0:00:56.5]} 35... Rf7 {[%clk 0:00:16.7]} 36. Ne5+
{[%clk 0:00:58]} 36... Bxe5 {[%clk 0:00:18.2]} 37. Rxf7 {[%clk 0:00:59.6]} 37...
Ra3 {[%clk 0:00:19.9]} 38. R7f3 {[%clk 0:00:59.8]} 38... Ra4 {[%clk 0:00:21.4]}
39. Re2 {[%clk 0:00:58.5]} 39... Bf6 {[%clk 0:00:21.6]} 40. Rf4 {[%clk
0:00:56.4]} 40... Rb4 {[%clk 0:00:20.7]} 41. c5 {[%clk 0:00:51.7]} 41... Rb1
{[%clk 0:00:19.9]} 42. a4 {[%clk 0:00:50.4]} 42... Rc1 {[%clk 0:00:18.3]} 43.
Rb4 {[%clk 0:00:51]} 43... Rxc5 {[%clk 0:00:16.2]} 44. Rxb7 {[%clk 0:00:52.1]}
44... Ra5 {[%clk 0:00:17.8]} 45. Ra2 {[%clk 0:00:52.5]} 45... c5 {[%clk
0:00:17.7]} 46. Rb5 {[%clk 0:00:53.2]} 46... Rxb5 {[%clk 0:00:17.8]} 47. axb5
{[%clk 0:00:55.1]} 47... Kf5 {[%clk 0:00:19.3]} 48. Rc2 {[%clk 0:00:55.4]} 48...
Bd4 {[%clk 0:00:19.1]} 49. b6 {[%clk 0:00:52.3]} 1-0

[Event "*** Titled Tuesday 3|2 Blitz (Late)"]
[Site "Chess.com"]
[Date "2016.11.01"]
[Round "4"]
[White "hardingstoptry"]
[Black "fastestmindalive"]
[Result "1-0"]
[WhiteElo "2591"]
[BlackElo "2527"]
[TimeControl "180+2"]
[EndTime "17:54:18 PDT"]
[Termination "hardingstoptry won by checkmate"]

1. Nf3 {[%clk 0:03:02]} 1... Nf6 {[%clk 0:02:57]} 2. g3 {[%clk 0:03:03.9]} 2...
b5 {[%clk 0:02:58]} 3. Bg2 {[%clk 0:03:05.8]} 3... Bb7 {[%clk 0:02:59.1]} 4. d3
{[%clk 0:03:03.4]} 4... e6 {[%clk 0:03:00.3]} 5. O-O {[%clk 0:03:04]} 5... d5
{[%clk 0:03:01.2]} 6. Nbd2 {[%clk 0:03:04.5]} 6... Be7 {[%clk 0:03:02]} 7. Re1
{[%clk 0:03:05.1]} 7... c5 {[%clk 0:03:01.8]} 8. e4 {[%clk 0:03:06.4]} 8... Nc6
{[%clk 0:03:00.5]} 9. c3 {[%clk 0:03:06.1]} 9... a5 {[%clk 0:03:00.5]} 10. b3
{[%clk 0:03:04]} 10... a4 {[%clk 0:03:00.5]} 11. c4 {[%clk 0:03:02.4]} 11...
dxc4 {[%clk 0:02:44.4]} 12. bxc4 {[%clk 0:02:58.4]} 12... b4 {[%clk 0:02:44.4]}
13. Nf1 {[%clk 0:02:55.1]} 13... O-O {[%clk 0:02:40.8]} 14. e5 {[%clk
0:02:56.2]} 14... Nd7 {[%clk 0:02:40.6]} 15. Bf4 {[%clk 0:02:55.3]} 15... Qb6
{[%clk 0:02:21.2]} 16. h4 {[%clk 0:02:51.5]} 16... Nd4 {[%clk 0:02:20.6]} 17.
N1d2 {[%clk 0:02:48.1]} 17... Nxf3+ {[%clk 0:02:15.7]} 18. Nxf3 {[%clk 0:02:49]}
18... Rfd8 {[%clk 0:02:12.7]} 19. Ng5 {[%clk 0:02:41]} 19... Bxg2 {[%clk
0:02:06.8]} 20. Kxg2 {[%clk 0:02:42.9]} 20... Nf8 {[%clk 0:02:07.5]} 21. h5
{[%clk 0:02:34.8]} 21... Rd4 {[%clk 0:01:54.9]} 22. h6 {[%clk 0:02:31]} 22...
Ng6 {[%clk 0:01:33.5]} 23. Qf3 {[%clk 0:02:11.2]} 23... Qd8 {[%clk 0:01:15.7]}
24. Bd2 {[%clk 0:01:48.8]} 24... Bxg5 {[%clk 0:00:28.2]} 25. Bxg5 {[%clk
0:01:50.7]} 25... Qxg5 {[%clk 0:00:30.1]} 26. Qxa8+ {[%clk 0:01:43.5]} 26... Rd8
{[%clk 0:00:31.7]} 27. Qxa4 {[%clk 0:01:40.1]} 27... Nh4+ {[%clk 0:00:30.9]} 28.
Kh2 {[%clk 0:01:31.5]} 28... Nf3+ {[%clk 0:00:31.6]} 29. Kg2 {[%clk 0:01:24.4]}
29... Nh4+ {[%clk 0:00:16.7]} 30. Kh2 {[%clk 0:01:18.2]} 30... Nf3+ {[%clk
0:00:11.5]} 31. Kg2 {[%clk 0:01:19.3]} 31... Nxe1+ {[%clk 0:00:10.1]} 32. Rxe1
{[%clk 0:01:20.1]} 32... gxh6 {[%clk 0:00:11.4]} 33. a3 {[%clk 0:01:14.5]} 33...
Qd2 {[%clk 0:00:05.1]} 34. Re4 {[%clk 0:01:09.6]} 34... h5 {[%clk 0:00:06.4]}
35. Rf4 {[%clk 0:01:04.7]} 35... Qxd3 {[%clk 0:00:04.8]} 36. axb4 {[%clk
0:01:04.1]} 36... cxb4 {[%clk 0:00:04.4]} 37. Qxb4 {[%clk 0:01:06]} 37... Rd4
{[%clk 0:00:03.6]} 38. Qb8+ {[%clk 0:01:01.4]} 38... Kg7 {[%clk 0:00:05]} 39.
Rf3 {[%clk 0:00:58.7]} 39... Qe4 {[%clk 0:00:05.8]} 40. Qc7 {[%clk 0:00:50.7]}
40... Qg6 {[%clk 0:00:04.2]} 41. c5 {[%clk 0:00:48.5]} 41... Rd5 {[%clk
0:00:03]} 42. c6 {[%clk 0:00:45.8]} 42... h4 {[%clk 0:00:02.6]} 43. Kh3 {[%clk
0:00:37.9]} 43... Qh5 {[%clk 0:00:02.6]} 44. g4 {[%clk 0:00:33.2]} 44... Qg6
{[%clk 0:00:04.2]} 45. Kh2 {[%clk 0:00:30.4]} 45... Rd3 {[%clk 0:00:04.5]} 46.
Rf4 {[%clk 0:00:29.2]} 46... Rd2 {[%clk 0:00:04.4]} 47. Qe7 {[%clk 0:00:27.8]}
47... Rc2 {[%clk 0:00:04.7]} 48. c7 {[%clk 0:00:24.8]} 48... h5 {[%clk
0:00:05.6]} 49. Rf6 {[%clk 0:00:23.9]} 49... Rxf2+ {[%clk 0:00:03.8]} 50. Rxf2
{[%clk 0:00:21.8]} 50... hxg4 {[%clk 0:00:05.1]} 51. c8=Q {[%clk 0:00:21]} 51...
g3+ {[%clk 0:00:05.5]} 52. Kh3 {[%clk 0:00:19.1]} 52... gxf2 {[%clk 0:00:05.7]}
53. Qef8+ {[%clk 0:00:18.4]} 53... Kh7 {[%clk 0:00:07.1]} 54. Qh8# {[%clk
0:00:16.5]} 1-0

[Event "*** Titled Tuesday 3|2 Blitz (Late)"]
[Site "Chess.com"]
[Date "2016.11.01"]
[Round "4"]
[White "NTBT_DHS"]
[Black "Zlatan56"]
[Result "1-0"]
[WhiteElo "2507"]
[BlackElo "2630"]
[TimeControl "180+2"]
[EndTime "17:54:43 PDT"]
[Termination "NTBT_DHS won on time"]

1. d4 {[%clk 0:03:01.9]} 1... g6 {[%clk 0:03:02]} 2. c4 {[%clk 0:02:58.6]} 2...
Nf6 {[%clk 0:02:59.2]} 3. Nc3 {[%clk 0:02:59.5]} 3... Bg7 {[%clk 0:03:00.4]} 4.
e4 {[%clk 0:03:00.2]} 4... d6 {[%clk 0:03:00.6]} 5. Nf3 {[%clk 0:03:01.8]} 5...
O-O {[%clk 0:03:01.9]} 6. Be2 {[%clk 0:03:03.2]} 6... Na6 {[%clk 0:03:03.1]} 7.
O-O {[%clk 0:03:04.2]} 7... e5 {[%clk 0:03:04.2]} 8. Re1 {[%clk 0:03:05.3]} 8...
Qe8 {[%clk 0:02:54.3]} 9. Bf1 {[%clk 0:03:04.8]} 9... Bg4 {[%clk 0:02:54.6]} 10.
d5 {[%clk 0:03:00.4]} 10... Nh5 {[%clk 0:02:35.8]} 11. h3 {[%clk 0:02:58.7]}
11... Bd7 {[%clk 0:02:35.9]} 12. g3 {[%clk 0:02:31.9]} 12... f5 {[%clk
0:02:33.8]} 13. exf5 {[%clk 0:02:24.4]} 13... gxf5 {[%clk 0:02:35.7]} 14. Ng5
{[%clk 0:02:25.4]} 14... Nf6 {[%clk 0:02:29.1]} 15. Bg2 {[%clk 0:02:22.6]} 15...
Kh8 {[%clk 0:02:17.1]} 16. Rb1 {[%clk 0:02:11.1]} 16... Nc5 {[%clk 0:02:10.7]}
17. b4 {[%clk 0:02:06.8]} 17... Na4 {[%clk 0:02:11.3]} 18. Nxa4 {[%clk
0:02:04.5]} 18... Bxa4 {[%clk 0:02:13.2]} 19. Qd3 {[%clk 0:02:05.1]} 19... e4
{[%clk 0:02:08.4]} 20. Qe2 {[%clk 0:02:00.9]} 20... Bd7 {[%clk 0:02:08.2]} 21.
h4 {[%clk 0:02:00.2]} 21... Ng4 {[%clk 0:01:53]} 22. Bb2 {[%clk 0:01:54.5]}
22... Ne5 {[%clk 0:01:50.6]} 23. Rbd1 {[%clk 0:01:16.1]} 23... Qg6 {[%clk
0:01:35.4]} 24. Nh3 {[%clk 0:01:14.7]} 24... Rae8 {[%clk 0:01:35.5]} 25. Nf4
{[%clk 0:01:15.3]} 25... Qh6 {[%clk 0:01:34.9]} 26. Qc2 {[%clk 0:01:14.9]} 26...
Rg8 {[%clk 0:01:31.7]} 27. Bc1 {[%clk 0:01:14.3]} 27... Qf6 {[%clk 0:01:19.7]}
28. Nh5 {[%clk 0:01:12.5]} 28... Qf7 {[%clk 0:01:15.6]} 29. Nxg7 {[%clk
0:01:13.4]} 29... Rxg7 {[%clk 0:01:17.1]} 30. Bb2 {[%clk 0:01:14.9]} 30... f4
{[%clk 0:01:14.9]} 31. Qxe4 {[%clk 0:01:00.7]} 31... Rf8 {[%clk 0:00:37.4]} 32.
Bxe5 {[%clk 0:00:51.1]} 32... dxe5 {[%clk 0:00:39.3]} 33. Qxe5 {[%clk
0:00:52.4]} 33... fxg3 {[%clk 0:00:33.3]} 34. fxg3 {[%clk 0:00:53]} 34... Qf2+
{[%clk 0:00:24.6]} 35. Kh2 {[%clk 0:00:53.7]} 35... Rf3 {[%clk 0:00:17.3]} 36.
Rf1 {[%clk 0:00:26.6]} 36... Qxg3+ {[%clk 0:00:17.7]} 37. Qxg3 {[%clk
0:00:28.1]} 37... Rfxg3 {[%clk 0:00:19.3]} 38. Rf8+ {[%clk 0:00:29.7]} 38... Rg8
{[%clk 0:00:19.9]} 39. Rxg8+ {[%clk 0:00:31.1]} 39... Rxg8 {[%clk 0:00:19.4]}
40. Rd4 {[%clk 0:00:31]} 40... Re8 {[%clk 0:00:17.2]} 41. d6 {[%clk 0:00:27.9]}
41... c6 {[%clk 0:00:17]} 42. c5 {[%clk 0:00:29]} 42... Re2 {[%clk 0:00:14.2]}
43. Kg3 {[%clk 0:00:29.9]} 43... Rxa2 {[%clk 0:00:14.6]} 44. Re4 {[%clk
0:00:28.2]} 44... Ra3+ {[%clk 0:00:09.9]} 45. Kf4 {[%clk 0:00:28.2]} 45... Rb3
{[%clk 0:00:10.8]} 46. Bf3 {[%clk 0:00:25.8]} 46... Kg8 {[%clk 0:00:09.8]} 47.
Bg4 {[%clk 0:00:25.9]} 47... Bxg4 {[%clk 0:00:09.8]} 48. Kxg4 {[%clk 0:00:27.2]}
48... Rd3 {[%clk 0:00:10.4]} 49. Kf5 {[%clk 0:00:25]} 49... Kf8 {[%clk
0:00:09.5]} 50. Ke6 {[%clk 0:00:25.8]} 50... Ke8 {[%clk 0:00:09.2]} 51. Kf6+
{[%clk 0:00:25.8]} 51... Kd8 {[%clk 0:00:09.3]} 52. Kg7 {[%clk 0:00:26.3]} 52...
b6 {[%clk 0:00:06.9]} 53. Kxh7 {[%clk 0:00:23.4]} 53... Rd5 {[%clk 0:00:07.7]}
54. Rc4 {[%clk 0:00:23.6]} 54... bxc5 {[%clk 0:00:08.5]} 55. bxc5 {[%clk
0:00:24.6]} 55... a5 {[%clk 0:00:10]} 56. Kg6 {[%clk 0:00:25.7]} 56... a4 {[%clk
0:00:11.2]} 57. h5 {[%clk 0:00:27]} 57... a3 {[%clk 0:00:12.3]} 58. h6 {[%clk
0:00:28.4]} 58... a2 {[%clk 0:00:13]} 59. Ra4 {[%clk 0:00:29.7]} 59... Rd2
{[%clk 0:00:08.6]} 60. h7 {[%clk 0:00:24.7]} 60... Rg2+ {[%clk 0:00:08.9]} 61.
Kf5 {[%clk 0:00:25.8]} 61... Rf2+ {[%clk 0:00:09.7]} 62. Ke4 {[%clk 0:00:24.4]}
62... Rh2 {[%clk 0:00:10.2]} 63. Rxa2 {[%clk 0:00:24.7]} 1-0